[Event "WSTCC-50 2024"]
[Site "Krakow"]
[Date "2024.07.04"]
[Round "3.21"]
[White "Osiecki, Stanislaw"]
[Black "Westphal, Wolfgang"]
[Result "1/2-1/2"]
[ECO "A11"]
[WhiteElo "1986"]
[BlackElo "2172"]
[Annotator "RC"]
[PlyCount "77"]
[EventDate "2024.07.01"]
[EventType "team-tourn"]
[EventCountry "POL"]
[SourceTitle "playchess.com"]
[Source "ChessBase"]
[SourceQuality "1"]
[TimeControl "40/5400+30:1800+30"]

1. e4 a6 2. d4 {[%emt 0:01:09]} d5 {[%emt 0:00:34]} 3. e5 {[%emt 0:03:28]} c5 {[%emt 0:00:42]} 4. dxc5 {[%emt 0:09:38]} Nc6 {[%emt 0:01:19]} 5. Nf3 {[%emt 0:02:38]} Bg4 {[%emt 0:01:05]} 6. Be2 {[%emt 0:01:58]} e6 {[%emt 0:01:06]} 7. Bf4 {[%emt 0:00:32]} Bxc5 {[%emt 0:00:15]} 8. O-O {[%emt 0:00:49]} Nge7 {[%emt 0:00:24]} 9. Bd3 {[%emt 0:07:42]} Ng6 {[%emt 0:04:12]} 10. Bxg6 {[%emt 0:00:22]} hxg6 {[%emt 0:00:07]} 11. h3 {[%emt 0:08:03]} Bxf3 {[%emt 0:10:14]} 12. Qxf3 {[%emt 0:00:03]} Bd4 {[%emt 0:00:12]} 13. Qb3 {[%emt 0:05:55]} Qc7 {[%emt 0:00:37]} 14. Re1 {[%emt 0:01:30]} Rc8 {[%emt 0:09:34]} 15. Nc3 {[%emt 0:02:27]} O-O {[%emt 0:01:18]} 16. Nd1 {[%emt 0:07:19]} Bxe5 {[%emt 0:05:33]} 17. Bxe5 {[%emt 0:00:38]} Nxe5 {[%emt 0:00:08]} 18. Qg3 {[%emt 0:01:56]} Nd7 {[%emt 0:02:46]} 19. Qb3 {[%emt 0:02:43]} b5 {[%emt 0:08:14]} 20. c3 {[%emt 0:00:24]} Nb6 {[%emt 0:03:10]} 21. Ne3 {[%emt 0:00:45]} Rfd8 {[%emt 0:00:23]} 22. Rad1 {[%emt 0:00:20]} Qc5 {[%emt 0:01:14]} 23. Rd4 {[%emt 0:00:54]} Nc4 {[%emt 0:00:36]} 24. Ng4 {[%emt 0:01:30]} Nd6 {[%emt 0:00:35]} 25. Ne5 {[%emt 0:00:53]} Nf5 {[%emt 0:00:27]} 26. Rg4 {[%emt 0:00:44]} Rc7 {[%emt 0:07:49]} 27. Nf3 {[%emt 0:04:33]} Qb6 {[%emt 0:03:21]} 28. Ne5 {[%emt 0:00:47]} Qd6 {[%emt 0:01:14]} 29. Qd1 {[%emt 0:01:16]} d4 {[%emt 0:00:52]} 30. cxd4 {[%emt 0:00:36]} Nxd4 {[%emt 0:00:01]} 31. Re3 {[%emt 0:03:10]} Rcc8 {[%emt 0:09:50]} 32. Rh4 {[%emt 0:03:18]} Rc7 {[%emt 0:05:46]} 33. Rxd4 {[%emt 0:07:20]} Qxd4 {[%emt 0:00:16]} 34. Rd3 {[%emt 0:00:01]} Qxe5 {[%emt 0:00:48]} 35. Rxd8+ {[%emt 0:00:03]} Kh7 {[%emt 0:00:09]} 36. g3 {[%emt 0:01:30]} Qxb2 {[%emt 0:04:24]} 37. Rh8+ {[%emt 0:01:19]} Kxh8 {[%emt 0:00:13]} 38. Qd8+ Kh7 {[%emt 0:00:28]} 39. Qh4+ {[%emt 0:00:04]} 1/2-1/2

[Event "WSTCC-50 2024"]
[Site "Krakow"]
[Date "2024.07.04"]
[Round "3.22"]
[White "Dettmann, Gerd"]
[Black "Sielicki, Tomasz"]
[Result "1-0"]
[ECO "C54"]
[WhiteElo "2121"]
[BlackElo "2017"]
[Annotator "RC"]
[PlyCount "135"]
[EventDate "2024.07.01"]
[EventType "team-tourn"]
[EventCountry "POL"]
[SourceTitle "playchess.com"]
[Source "ChessBase"]
[SourceQuality "1"]
[TimeControl "40/5400+30:1800+30"]

1. e4 {[%emt 0:00:03]} e5 {[%emt 0:00:11]} 2. Nf3 {[%emt 0:00:24]} Nc6 {[%emt 0:00:13]} 3. Bc4 {[%emt 0:01:41]} Bc5 {[%emt 0:00:14]} 4. c3 {[%emt 0:00:54]} Nf6 {[%emt 0:00:17]} 5. d4 {[%emt 0:03:06]} exd4 {[%emt 0:00:55]} 6. e5 {[%emt 0:00:37]} d5 {[%emt 0:00:21]} 7. Bb5 {[%emt 0:03:05]} Ne4 {[%emt 0:00:28]} 8. cxd4 {[%emt 0:00:21]} Bb6 {[%emt 0:00:09]} 9. O-O {[%emt 0:05:11]} O-O {[%emt 0:01:09]} 10. Be3 {[%emt 0:06:27]} Bg4 {[%emt 0:03:54]} 11. Be2 {[%emt 0:03:58]} f5 {[%emt 0:03:33]} 12. exf6 {[%emt 0:01:34]} Qxf6 {[%emt 0:07:18]} 13. Nc3 {[%emt 0:00:55]} Rad8 {[%emt 0:16:25]} 14. Qb3 {[%emt 0:15:58]} Nxc3 {[%emt 0:06:37]} 15. bxc3 {[%emt 0:00:10]} Qg6 {[%emt 0:07:00]} 16. Kh1 {[%emt 0:05:02]} Qh5 {[%emt 0:05:22]} 17. Qd1 {[%emt 0:01:30]} Na5 {[%emt 0:08:08]} 18. Re1 {[%emt 0:08:20]} Nc4 {[%emt 0:02:43]} 19. Nd2 {[%emt 0:04:02]} Nxe3 {[%emt 0:06:37]} 20. fxe3 {[%emt 0:00:05]} Bxe2 {[%emt 0:00:48]} 21. Qxe2 {[%emt 0:00:03]} Qxe2 {[%emt 0:01:38]} 22. Rxe2 {[%emt 0:00:03]} c5 {[%emt 0:02:58]} 23. Rb1 {[%emt 0:02:09]} cxd4 {[%emt 0:02:39]} 24. cxd4 {[%emt 0:00:44]} Rc8 {[%emt 0:06:37]} 25. Nf3 {[%emt 0:00:37]} Rc3 {[%emt 0:01:01]} 26. Kg1 {[%emt 0:00:57]} Rfc8 {[%emt 0:02:42]} 27. Kf2 {[%emt 0:01:42]} Rc2 {[%emt 0:01:48]} 28. Rb2 {[%emt 0:00:20]} Rxe2+ {[%emt 0:01:14]} 29. Kxe2 {[%emt 0:00:15]} Rc3 {[%emt 0:01:49]} 30. Ne5 {[%emt 0:01:31]} Rc7 {[%emt 0:02:16]} 31. Kd3 {[%emt 0:01:29]} Ba5 {[%emt 0:00:58]} 32. Rb5 {[%emt 0:02:18]} Rc3+ {[%emt 0:00:33]} 33. Ke2 {[%emt 0:00:02]} Rc2+ {[%emt 0:00:15]} 34. Kf3 {[%emt 0:00:01]} Bc7 {[%emt 0:04:45]} 35. Rxd5 {[%emt 0:06:57]} Bxe5 {[%emt 0:00:10]} 36. dxe5 {[%emt 0:00:47]} Rxa2 {[%emt 0:01:08]} 37. Rd8+ {[%emt 0:00:26]} Kf7 {[%emt 0:00:03]} 38. Rd7+ {[%emt 0:00:10]} Ke6 {[%emt 0:02:16]} 39. Rxb7 {[%emt 0:00:16]} g5 {[%emt 0:00:26]} 40. Rxh7 {[%emt 0:00:56]} Kxe5 {[%emt 0:00:09]} 41. Re7+ {[%emt 0:34:06]} Kf6 {[%emt 0:31:49]} 42. Rc7 {[%emt 0:00:26]} a5 {[%emt 0:00:00]} 43. Rc6+ {[%emt 0:00:00]} Kf7 {[%emt 0:00:00]} 44. h3 {[%emt 0:00:00]} a4 {[%emt 0:00:00]} 45. g3 {[%emt 0:00:00]} a3 {[%emt 0:00:00]} 46. Ra6 {[%emt 0:00:00]} Ra1 {[%emt 0:00:00]} 47. Kg4 {[%emt 0:00:00]} a2 {[%emt 0:00:00]} 48. e4 {[%emt 0:00:00]} Ke7 {[%emt 0:00:00]} 49. Kxg5 {[%emt 0:00:00]} Rg1 {[%emt 0:00:00]} 50. Rxa2 {[%emt 0:00:00]} Rxg3+ {[%emt 0:00:00]} 51. Kh4 {[%emt 0:00:00]} Rg1 {[%emt 0:00:00]} 52. Kh5 {[%emt 0:00:00]} Kf6 {[%emt 0:00:00]} 53. h4 {[%emt 0:00:00]} Rg3 {[%emt 0:03:41]} 54. Ra5 {[%emt 0:00:00]} Re3 {[%emt 0:01:36]} 55. Rf5+ {[%emt 0:00:00]} Ke6 {[%emt 0:01:24]} 56. Rf4 {[%emt 0:00:00]} Ke5 {[%emt 0:00:19]} 57. Rg4 {[%emt 0:00:00]} Rf3 {[%emt 0:00:36]} 58. Kg6 {[%emt 0:00:00]} Ke6 {[%emt 0:01:36]} 59. h5 {[%emt 0:00:00]} Rf6+ {[%emt 0:00:27]} 60. Kg5 {[%emt 0:00:00]} Rf8 {[%emt 0:00:38]} 61. h6 {[%emt 0:00:00]} Rg8+ {[%emt 0:00:34]} 62. Kh5 {[%emt 0:00:00]} Rh8 {[%emt 0:00:14]} 63. Rg7 {[%emt 0:00:00]} Kf6 {[%emt 0:00:16]} 64. Ra7 {[%emt 0:00:00]} Rg8 {[%emt 0:00:22]} 65. h7 {[%emt 0:00:00]} Re8 {[%emt 0:01:10]} 66. Kh6 {[%emt 0:00:00]} Rf8 {[%emt 0:00:21]} 67. Rg7 {[%emt 0:00:00]} Ke6 {[%emt 0:00:32]} 68. Rg8 {[%emt 0:00:00]} 1-0

[Event "WSTCC-50 2024"]
[Site "Krakow"]
[Date "2024.07.04"]
[Round "3.22"]
[White "Rasalingam, Haran"]
[Black "Bhawoodien, Shabir Hussain"]
[Result "0-1"]
[ECO "C28"]
[WhiteElo "1944"]
[BlackElo "1990"]
[Annotator "NA RC"]
[PlyCount "94"]
[EventDate "2024.07.01"]
[EventType "team-tourn"]
[EventCountry "POL"]
[SourceTitle "playchess.com"]
[Source "ChessBase"]
[SourceQuality "1"]
[TimeControl "40/5400+30:1800+30"]

1. e4 {[%emt 0:00:32]} e5 {[%emt 0:00:03]} 2. Bc4 {[%emt 0:00:19]} Nc6 {[%emt 0:00:30]} 3. Nc3 {[%emt 0:00:49]} Nf6 {[%emt 0:00:55]} 4. d3 {[%emt 0:01:27]} Bb4 {[%emt 0:00:18]} 5. Nf3 {[%emt 0:00:39]} d5 {[%emt 0:03:51]} 6. exd5 {[%emt 0:00:19]} Nxd5 {[%emt 0:00:04]} 7. O-O {[%emt 0:00:19]} Nxc3 {[%emt 0:00:21]} 8. bxc3 {[%emt 0:00:13]} Bxc3 {[%emt 0:00:16]} 9. Ng5 {[%emt 0:01:22]} f6 {[%emt 0:55:30]} 10. Nf7 {[%emt 0:30:59]} Qe7 {[%emt 0:02:12]} 11. Nxh8 {[%emt 0:00:20]} Bxa1 {[%emt 0:02:07]} 12. Qh5+ {[%emt 0:01:30]} g6 {[%emt 0:04:57]} 13. Nxg6 {[%emt 0:03:44]} hxg6 {[%emt 0:02:04]} 14. Qxg6+ {[%emt 0:09:17]} Kd8 {[%emt 0:08:08]} 15. Qg8+ {[%emt 0:05:39]} Kd7 {[%emt 0:05:31]} 16. Bh6 {[%emt 0:00:29]} Qe8 {[%emt 0:09:35]} 17. Qxe8+ {[%emt 0:11:36]} Kxe8 {[%emt 0:00:02]} 18. Rxa1 {[%emt 0:00:11]} Nd4 {[%emt 0:00:13]} 19. Bb3 {[%emt 0:05:22]} a5 {[%emt 0:00:19]} 20. f4 {[%emt 0:01:27]} a4 {[%emt 0:01:02]} 21. Bd5 {[%emt 0:00:21]} c6 {[%emt 0:00:12]} 22. Be4 {[%emt 0:00:09]} f5 {[%emt 0:01:16]} 23. Bf3 {[%emt 0:00:11]} Nxc2 {[%emt 0:00:02]} 24. Rc1 {[%emt 0:00:27]} Nb4 {[%emt 0:00:12]} 25. Bh5+ {[%emt 0:00:37]} Ke7 {[%emt 0:00:19]} 26. fxe5 {[%emt 0:02:36]} Nxa2 {[%emt 0:00:12]} 27. Ra1 {[%emt 0:02:16]} Nb4 {[%emt 0:00:08]} 28. Be2 {[%emt 0:07:23]} Be6 {[%emt 0:00:09]} 29. Be3 {[%emt 0:00:24]} Nd5 {[%emt 0:02:04]} 30. Bc5+ {[%emt 0:00:13]} Kd7 {[%emt 0:00:00]} 31. d4 {[%emt 0:03:45]} b5 {[%emt 0:00:12]} 32. Ra3 {[%emt 0:00:04]} b4 {[%emt 0:00:13]} 33. Rh3 {[%emt 0:00:10]} Bg8 {[%emt 0:00:57]} 34. Rg3 {[%emt 0:00:17]} Bf7 {[%emt 0:00:57]} 35. Bd3 {[%emt 0:01:05]} Ke6 {[%emt 0:00:52]} 36. Rg5 {[%emt 0:01:06]} Ne3 {[%emt 0:00:59]} 37. Bxb4 {[%emt 0:00:19]} a3 {[%emt 0:00:27]} 38. Kf2 {[%emt 0:03:49]} a2 {[%emt 0:00:28]} 39. Kxe3 {[%emt 0:02:15]} a1=Q {[%emt 0:00:17]} 40. Bc4+ {[%emt 0:00:06]} Kd7 {[%emt 0:00:08]} 41. Bxf7 {[%emt 0:30:18]} Qg1+ {[%emt 0:31:43]} 42. Kd3 {[%emt 0:01:14]} Qd1+ {[%emt 0:00:38]} 43. Ke3 {[%emt 0:00:57]} Qg1+ {[%emt 0:00:00]} 44. Kf3 {[%emt 0:00:00]} Qxd4 {[%emt 0:00:00]} 45. e6+ {[%emt 0:00:00]} Kc7 {[%emt 0:00:00]} 46. Be1 {[%emt 0:00:00]} Qe4+ {[%emt 0:00:00]} 47. Kf2 {[%emt 0:00:00]} Ra2+ {[%emt 0:00:00]} 0-1

[Event "WSTCC-50 2024"]
[Site "Krakow"]
[Date "2024.07.04"]
[Round "3.23"]
[White "Flis, Pawel"]
[Black "Dettmann, Holger"]
[Result "1-0"]
[ECO "B08"]
[WhiteElo "1980"]
[BlackElo "1965"]
[Annotator "NA RC"]
[PlyCount "85"]
[EventDate "2024.07.01"]
[EventType "team-tourn"]
[EventCountry "POL"]
[SourceTitle "playchess.com"]
[Source "ChessBase"]
[SourceQuality "1"]
[TimeControl "40/5400+30:1800+30"]

1. e4 {[%emt 0:00:01]} g6 {[%emt 0:04:00]} 2. d4 {[%emt 0:00:06]} Bg7 {[%emt 0:00:06]} 3. Nc3 {[%emt 0:00:12]} d6 {[%emt 0:02:48]} 4. Nf3 {[%emt 0:00:20]} Nf6 {[%emt 0:05:39]} 5. Be3 {[%emt 0:00:08]} O-O {[%emt 0:00:07]} 6. Qd2 {[%emt 0:00:05]} c6 {[%emt 0:04:37]} 7. Bd3 {[%emt 0:01:05]} b5 {[%emt 0:01:58]} 8. Bh6 {[%emt 0:01:48]} a6 {[%emt 0:19:43]} 9. h4 {[%emt 0:02:49]} Bxh6 {[%emt 0:00:13]} 10. Qxh6 {[%emt 0:00:09]} Ng4 {[%emt 0:00:08]} 11. Qd2 {[%emt 0:09:12]} h5 {[%emt 0:02:57]} 12. e5 {[%emt 0:02:09]} dxe5 {[%emt 0:11:02]} 13. dxe5 {[%emt 0:00:18]} c5 {[%emt 0:00:42]} 14. O-O-O {[%emt 0:11:35]} Ra7 {[%emt 0:07:21]} 15. Qe2 {[%emt 0:01:11]} Qa5 {[%emt 0:05:01]} 16. e6 {[%emt 0:11:46]} f5 {[%emt 0:00:19]} 17. Qe1 {[%emt 0:10:37]} Nc6 {[%emt 0:03:37]} 18. Ng5 {[%emt 0:00:57]} Nd4 {[%emt 0:11:41]} 19. f3 {[%emt 0:08:18]} Nf6 {[%emt 0:00:06]} 20. Qe5 {[%emt 0:05:10]} b4 {[%emt 0:01:51]} 21. Nb1 {[%emt 0:04:11]} Nc6 {[%emt 0:02:45]} 22. Qe1 {[%emt 0:03:01]} Qxa2 {[%emt 0:00:39]} 23. g4 {[%emt 0:08:48]} c4 {[%emt 0:00:02]} 24. Bf1 {[%emt 0:00:40]} Rc7 {[%emt 0:04:35]} 25. gxf5 {[%emt 0:01:05]} Na5 {[%emt 0:00:22]} 26. Qxb4 {[%emt 0:02:51]} Nb3+ {[%emt 0:01:19]} 27. cxb3 {[%emt 0:00:27]} cxb3+ {[%emt 0:00:03]} 28. Bc4 {[%emt 0:02:21]} Bb7 {[%emt 0:00:13]} 29. Rd4 {[%emt 0:00:45]} Bd5 {[%emt 0:00:55]} 30. Ne4 {[%emt 0:05:27]} Nxe4 {[%emt 0:02:04]} 31. fxe4 {[%emt 0:00:08]} a5 {[%emt 0:00:14]} 32. Qc3 {[%emt 0:02:56]} Rfc8 {[%emt 0:03:36]} 33. exd5 {[%emt 0:00:31]} a4 {[%emt 0:03:25]} 34. d6 {[%emt 0:03:06]} exd6 {[%emt 0:00:20]} 35. e7+ {[%emt 0:00:07]} Kh7 {[%emt 0:01:03]} 36. fxg6+ {[%emt 0:01:08]} Kh6 {[%emt 0:00:02]} 37. g7 {[%emt 0:01:41]} d5 {[%emt 0:00:29]} 38. Qe3+ {[%emt 0:00:39]} Kh7 {[%emt 0:00:04]} 39. g8=Q+ {[%emt 0:00:14]} Rxg8 {[%emt 0:00:04]} 40. e8=Q {[%emt 0:00:36]} Rxe8 {[%emt 0:00:03]} 41. Qxe8 {[%emt 0:30:28]} a3 {[%emt 0:30:42]} 42. Qxh5+ {[%emt 0:00:07]} Kg8 {[%emt 0:00:12]} 43. Qxd5+ {[%emt 0:00:16]} 1-0

[Event "WSTCC-50 2024"]
[Site "Krakow"]
[Date "2024.07.04"]
[Round "3.23"]
[White "Metcalfe, Allister"]
[Black "Wilson, Edgar"]
[Result "1-0"]
[ECO "A13"]
[WhiteElo "1889"]
[BlackElo "1912"]
[Annotator "NA RC"]
[PlyCount "81"]
[EventDate "2024.07.01"]
[EventType "team-tourn"]
[EventCountry "POL"]
[SourceTitle "playchess.com"]
[Source "ChessBase"]
[SourceQuality "1"]
[TimeControl "40/5400+30:1800+30"]

1. c4 {[%emt 0:00:10]} e6 {[%emt 0:00:10]} 2. e4 {[%emt 0:00:27]} d5 {[%emt 0:01:12]} 3. exd5 {[%emt 0:00:20]} exd5 {[%emt 0:00:10]} 4. cxd5 {[%emt 0:00:09]} Nf6 {[%emt 0:00:39]} 5. Nc3 {[%emt 0:00:14]} Nxd5 {[%emt 0:01:00]} 6. Bc4 {[%emt 0:02:18]} Be6 {[%emt 0:03:27]} 7. Qb3 {[%emt 0:10:19]} Nb4 {[%emt 0:01:41]} 8. Bxe6 {[%emt 0:04:42]} fxe6 {[%emt 0:00:51]} 9. Nf3 {[%emt 0:04:45]} Nd3+ {[%emt 0:01:19]} 10. Kf1 {[%emt 0:01:12]} Nc5 {[%emt 0:01:11]} 11. Qc4 {[%emt 0:03:04]} Qd3+ {[%emt 0:01:08]} 12. Qxd3 {[%emt 0:00:03]} Nxd3 {[%emt 0:00:13]} 13. Ke2 {[%emt 0:00:15]} Nxc1+ {[%emt 0:05:25]} 14. Raxc1 {[%emt 0:05:55]} Nc6 {[%emt 0:00:36]} 15. d4 {[%emt 0:02:35]} O-O-O {[%emt 0:00:58]} 16. Rhd1 {[%emt 0:02:01]} g6 {[%emt 0:11:15]} 17. Ne4 {[%emt 0:17:18]} Bg7 {[%emt 0:05:13]} 18. Rc4 {[%emt 0:02:10]} Rhe8 {[%emt 0:08:07]} 19. b4 {[%emt 0:03:36]} e5 {[%emt 0:14:28]} 20. Rdc1 {[%emt 0:10:08]} exd4 {[%emt 0:12:22]} 21. Kd3 {[%emt 0:00:12]} Re7 {[%emt 0:03:33]} 22. b5 {[%emt 0:04:48]} Ne5+ {[%emt 0:01:04]} 23. Nxe5 {[%emt 0:00:09]} Bxe5 {[%emt 0:00:11]} 24. g3 {[%emt 0:01:46]} Bg7 {[%emt 0:02:05]} 25. a4 {[%emt 0:00:41]} Rde8 {[%emt 0:02:04]} 26. Nd6+ {[%emt 0:00:10]} Kd7 {[%emt 0:06:26]} 27. Nxe8 {[%emt 0:00:14]} Kxe8 {[%emt 0:00:02]} 28. Rxc7 {[%emt 0:00:21]} Be5 {[%emt 0:00:19]} 29. Rxe7+ {[%emt 0:00:20]} Kxe7 {[%emt 0:00:06]} 30. f4 {[%emt 0:00:47]} Bd6 {[%emt 0:01:18]} 31. Kxd4 {[%emt 0:00:14]} Ke6 {[%emt 0:03:15]} 32. Ke4 {[%emt 0:00:11]} h6 {[%emt 0:00:34]} 33. h3 {[%emt 0:00:31]} g5 {[%emt 0:02:06]} 34. f5+ {[%emt 0:00:30]} Kf6 {[%emt 0:00:10]} 35. g4 {[%emt 0:00:15]} Bg3 {[%emt 0:00:51]} 36. Rc8 {[%emt 0:00:28]} Bh2 {[%emt 0:00:58]} 37. Ra8 {[%emt 0:00:37]} Bg1 {[%emt 0:00:06]} 38. Rb8 {[%emt 0:00:28]} Bf2 {[%emt 0:02:25]} 39. Rxb7 {[%emt 0:00:14]} Bg1 {[%emt 0:00:27]} 40. Rh7 {[%emt 0:00:17]} a5 {[%emt 0:00:39]} 41. Rxh6+ 1-0

[Event "WSTCC-50 2024"]
[Site "Krakow"]
[Date "2024.07.04"]
[Round "3.24"]
[White "Van Bentum, Horst"]
[Black "Zielinski, Olgierd"]
[Result "1/2-1/2"]
[ECO "D02"]
[WhiteElo "1951"]
[BlackElo "1913"]
[Annotator "NA RC"]
[PlyCount "31"]
[EventDate "2024.07.01"]
[EventType "team-tourn"]
[EventCountry "POL"]
[SourceTitle "playchess.com"]
[Source "ChessBase"]
[SourceQuality "1"]
[TimeControl "40/5400+30:1800+30"]

1. d4 {[%emt 0:00:07]} d5 {[%emt 0:00:11]} 2. Nf3 {[%emt 0:00:25]} Bf5 {[%emt 0:00:07]} 3. c3 {[%emt 0:01:27]} e6 {[%emt 0:00:53]} 4. Bf4 {[%emt 0:02:27]} Bd6 {[%emt 0:00:13]} 5. Bg3 {[%emt 0:00:54]} Nf6 {[%emt 0:02:34]} 6. e3 {[%emt 0:01:18]} h6 {[%emt 0:05:49]} 7. Nbd2 {[%emt 0:03:49]} O-O {[%emt 0:00:36]} 8. Be2 {[%emt 0:01:13]} c5 {[%emt 0:00:08]} 9. Ne5 {[%emt 0:07:55]} Nc6 {[%emt 0:00:21]} 10. f4 {[%emt 0:13:09]} Ne4 {[%emt 0:04:16]} 11. Nxe4 {[%emt 0:00:24]} Bxe4 {[%emt 0:00:08]} 12. O-O {[%emt 0:11:52]} Ne7 {[%emt 0:09:01]} 13. Bd3 {[%emt 0:02:57]} Nf5 {[%emt 0:02:08]} 14. Bf2 {[%emt 0:00:30]} Bxd3 {[%emt 0:06:38]} 15. Qxd3 {[%emt 0:00:53]} c4 {[%emt 0:10:45]} 16. Qe2 {[%emt 0:01:32]} 1/2-1/2

[Event "WSTCC-50 2024"]
[Site "Krakow"]
[Date "2024.07.04"]
[Round "3.24"]
[White "De Winter, Kevin"]
[Black "Schutte, Andre"]
[Result "1/2-1/2"]
[ECO "B23"]
[WhiteElo "1803"]
[BlackElo "1817"]
[Annotator "NA RC"]
[PlyCount "63"]
[EventDate "2024.07.01"]
[EventType "team-tourn"]
[EventCountry "POL"]
[SourceTitle "playchess.com"]
[Source "ChessBase"]
[SourceQuality "1"]
[TimeControl "40/5400+30:1800+30"]

1. e4 {[%emt 0:00:05]} c5 {[%emt 0:00:08]} 2. Nc3 {[%emt 0:00:08]} Nc6 {[%emt 0:00:06]} 3. f4 {[%emt 0:00:21]} e6 {[%emt 0:00:05]} 4. Bc4 {[%emt 0:02:43]} a6 {[%emt 0:01:56]} 5. a4 {[%emt 0:00:48]} Nge7 {[%emt 0:07:50]} 6. e5 {[%emt 0:08:41]} Nf5 {[%emt 0:02:01]} 7. Nf3 {[%emt 0:03:11]} d5 {[%emt 0:00:48]} 8. Be2 {[%emt 0:07:25]} g6 {[%emt 0:04:07]} 9. O-O {[%emt 0:01:34]} h5 {[%emt 0:01:16]} 10. d3 {[%emt 0:02:41]} Nce7 {[%emt 0:07:29]} 11. Kh1 {[%emt 0:11:40]} Bd7 {[%emt 0:02:40]} 12. Qe1 {[%emt 0:03:29]} Bc6 {[%emt 0:03:35]} 13. Bd2 {[%emt 0:03:11]} Ng8 {[%emt 0:03:16]} 14. Nd1 {[%emt 0:06:29]} Ngh6 {[%emt 0:02:28]} 15. Ne3 {[%emt 0:01:47]} Be7 {[%emt 0:06:32]} 16. Nxf5 {[%emt 0:02:52]} Nxf5 {[%emt 0:00:41]} 17. Ng5 {[%emt 0:02:31]} Qc7 {[%emt 0:08:22]} 18. Bd1 {[%emt 0:02:04]} b6 {[%emt 0:05:24]} 19. c3 {[%emt 0:02:35]} Qb7 {[%emt 0:11:21]} 20. Bf3 {[%emt 0:00:41]} d4 {[%emt 0:03:15]} 21. Bxc6+ {[%emt 0:01:03]} Qxc6 {[%emt 0:00:05]} 22. c4 {[%emt 0:00:52]} Bxg5 {[%emt 0:01:12]} 23. fxg5 {[%emt 0:00:02]} h4 {[%emt 0:01:08]} 24. Qe4 {[%emt 0:12:35]} Qxe4 {[%emt 0:06:34]} 25. dxe4 {[%emt 0:00:03]} Ne7 {[%emt 0:00:12]} 26. Rfd1 {[%emt 0:09:49]} a5 {[%emt 0:00:41]} 27. Ra3 {[%emt 0:02:51]} Nc6 {[%emt 0:00:53]} 28. Bf4 {[%emt 0:00:29]} Ke7 {[%emt 0:04:47]} 29. Rf3 {[%emt 0:00:53]} Rh7 {[%emt 0:00:30]} 30. Rdf1 {[%emt 0:00:55]} Nb8 {[%emt 0:09:04]} 31. Rb3 {[%emt 0:01:01]} Nd7 {[%emt 0:00:25]} 32. Rff3 {[%emt 0:01:03]} 1/2-1/2

[Event "WSTCC-50 2024"]
[Site "Krakow"]
[Date "2024.07.05"]
[Round "4.1"]
[White "David, Alberto"]
[Black "Ehlvest, Jaan"]
[Result "1/2-1/2"]
[ECO "D35"]
[WhiteElo "2502"]
[BlackElo "2528"]
[Annotator "TA"]
[PlyCount "26"]
[EventDate "2024.07.01"]
[EventType "team-tourn"]
[EventCountry "POL"]
[SourceTitle "playchess.com"]
[Source "ChessBase"]
[SourceQuality "1"]
[TimeControl "40/5400+30:1800+30"]

{[%evp 13,26,10,18,32,29,29,23,32,24,16,31,25,28,23,26]} 1. d4 {[%emt 0:00:07]} d5 {[%emt 0:00:20]} 2. c4 {[%emt 0:00:15]} e6 {[%emt 0:00:06]} 3. Nc3 {[%emt 0:00:23]} Nf6 {[%emt 0:00:08]} 4. cxd5 {[%emt 0:00:47]} exd5 {[%emt 0:00:11]} 5. Bg5 {[%emt 0:00:07]} Be7 {[%emt 0:00:05]} 6. e3 {[%emt 0:00:23]} O-O {[%emt 0:00:08]} 7. Bd3 {[%emt 0:01:58]} Re8 {[%emt 0:02:36]} 8. Nf3 {[%emt 0:11:51]} h6 {[%emt 0:08:55]} 9. Bf4 {[%emt 0:15:11]} c5 {[%emt 0:07:16]} 10. dxc5 {[%emt 0:06:03]} Bxc5 {[%emt 0:12:47]} 11. O-O {[%emt 0:01:01]} Nc6 {[%emt 0:00:51]} 12. Rc1 {[%emt 0:05:15]} a6 {[%emt 0:06:43]} 13. h3 {[%emt 0:07:29]} Ba7 {[%emt 0:04:12] An uneventful encounter.   Weighted Error Value: White=0.00 (flawless) /Black=0.01 (flawless) .  OK:         	White=5     	Black=3} 1/2-1/2